bitfinex/quotes_SOLUSD_20241007
["timestamp","ask_amount","ask_price","bid_price","bid_amount"]
[1728307625304,15.4897,147.42,147.37,0.12549]
[1728307625305,15.4897,147.42,147.38,43.26222252]
[1728307625467,15.4897,147.42,147.38,19.35984852]
[1728307625770,15.4897,147.42,147.36,20.0]
[1728307626072,15.4897,147.42,147.37,1.48236813]
[1728307626454,15.4897,147.42,147.37,0.12549]
[1728307628063,15.4897,147.42,147.37,24.027864]
[1728307629472,22.273,147.42,147.33,19.35984852]
[1728307629781,15.4897,147.42,147.34,1.35699416]
[1728307630273,22.273,147.42,147.33,19.35984852]
[1728307630571,12.7901,147.41,147.34,20.0]
[1728307630876,6.0063,147.41,147.35,0.12549]
[1728307631588,6.0063,147.41,147.35,43.38771252]
[1728307633275,15.4897,147.42,147.38,24.027864]
[1728307637068,15.4897,147.42,147.39,1.35664434]
[1728307638803,15.4897,147.42,147.38,24.027864]
[1728307641469,15.4897,147.42,147.38,0.12549]
[1728307641997,15.4897,147.42,147.36,20.0]
[1728307643495,15.4897,147.42,147.37,0.12549]
[1728307643995,15.4897,147.42,147.37,24.027864]
[1728307644698,15.4897,147.42,147.39,0.12549]
[1728307645912,15.4897,147.42,147.37,23.902374]
[1728307646197,15.4897,147.42,147.38,0.12549]
[1728307646396,15.4897,147.42,147.38,12.51297761]
[1728307651282,15.4897,147.42,147.39,1.35673048]
[1728307651906,15.4897,147.42,147.4,12.38748761]
[1728307655591,6.2381,147.45,147.41,1.48213712]
[1728307655798,6.2381,147.45,147.42,12.38748761]
[1728307655996,6.2381,147.45,147.43,1.35639859]
[1728307658493,6.3449,147.48,147.44,12.38748761]
[1728307658697,6.3449,147.48,147.45,13.74373303]
[1728307658894,6.3449,147.48,147.45,12.38748761]
[1728307663589,6.3449,147.48,147.44,12.38748761]
[1728307664712,13.1255,147.48,147.42,12.38748761]
[1728307665638,6.3449,147.48,147.41,12.38748761]
[1728307665922,6.7813,147.47,147.41,12.38748761]
[1728307667108,6.7815,147.46,147.4,12.38748761]
[1728307667417,15.64,147.45,147.4,12.38748761]
[1728307669610,22.4222,147.45,147.37,20.12549]
[1728307669856,22.4222,147.45,147.38,12.38748761]
[1728307670025,22.4222,147.45,147.39,12.38748761]
[1728307670337,6.7824,147.44,147.35,19.56419368]
[1728307670628,15.64,147.45,147.4,12.38748761]
[1728307671622,6.7818,147.46,147.4,12.38748761]
[1728307671829,6.3449,147.48,147.44,12.38748761]
[1728307672210,6.7819,147.45,147.37,0.12549]
[1728307672414,6.3449,147.48,147.4,12.38748761]
[1728307672613,6.7817,147.46,147.4,12.38748761]
[1728307674044,6.7824,147.44,147.37,0.12549]
[1728307674255,6.1964,147.43,147.37,12.38748761]
[1728307674550,6.7837,147.42,147.36,12.38748761]
[1728307675046,6.7837,147.42,147.34,3.53869368]
[1728307675047,15.3102,147.4,147.34,15.92618129]
[1728307675550,15.3102,147.4,147.37,12.38748761]
[1728307676246,15.3102,147.4,147.38,13.74442163]
[1728307676440,6.1964,147.43,147.39,13.74437321]
[1728307676755,6.1964,147.43,147.4,1.35671697]
[1728307677063,6.1964,147.43,147.41,12.38748761]
[1728307679338,15.3458,147.44,147.41,12.38748761]
[1728307679735,6.38,147.47,147.43,12.38748761]
[1728307679939,6.38,147.47,147.45,12.38748761]
[1728307680136,6.38,147.47,147.37,6.2457]
[1728307680350,6.38,147.47,147.41,12.38748761]
[1728307681645,6.38,147.47,147.43,12.38748761]
[1728307684642,6.38,147.47,147.44,12.38748761]
[1728307685256,6.38,147.47,147.42,12.38748761]
[1728307686468,6.38,147.47,147.45,12.38748761]
[1728307687656,6.38,147.47,147.43,12.38748761]
[1728307687887,6.38,147.47,147.45,12.38748761]
[1728307688364,6.38,147.47,147.44,12.38748761]
[1728307689937,22.8222988,147.5,147.45,12.38748761]
[1728307690249,22.8222988,147.5,147.46,13.74374782]
[1728307690446,29.6023988,147.5,147.46,12.38748761]
[1728307690651,29.6023988,147.5,147.44,12.38748761]
[1728307691054,6.7801,147.49,147.44,12.38748761]
[1728307691462,29.6020988,147.5,147.44,12.38748761]
[1728307695471,22.8222988,147.5,147.46,12.38748761]
[1728307695766,22.8222988,147.5,147.44,12.38748761]
[1728307695767,29.6019988,147.5,147.44,12.38748761]
[1728307696180,6.7802,147.49,147.44,12.38748761]
[1728307696479,22.8222988,147.5,147.44,12.38748761]
[1728307696679,6.7806,147.48,147.44,12.38748761]
[1728307696858,6.7802,147.49,147.44,12.38748761]
[1728307697174,29.6021988,147.5,147.44,12.38748761]
[1728307701363,22.8222988,147.5,147.44,12.38748761]
[1728307701576,22.8222988,147.5,147.43,12.38748761]
[1728307701577,6.7801,147.49,147.43,12.38748761]
[1728307703662,29.6020988,147.5,147.44,1.35642596]
[1728307703971,22.8222988,147.5,147.45,12.38748761]
[1728307705876,22.8222988,147.5,147.46,12.38748761]
[1728307706867,22.8222988,147.5,147.45,12.38748761]
[1728307714589,22.8222988,147.5,147.42,12.38748761]
[1728307715291,22.8222988,147.5,147.41,12.38748761]
[1728307715591,6.781,147.47,147.41,12.38748761]
[1728307715908,28.4598,147.45,147.38,12.38748761]
[1728307716470,6.7829,147.43,147.36,12.38748761]
[1728307718588,0.12549,147.43,147.35,3.53869368]
[1728307718993,6.7834,147.42,147.35,3.53869368]
[1728307719173,0.12549,147.43,147.35,15.92618129]
[1728307719368,6.7838,147.41,147.35,15.92618129]
[1728307719587,6.7857,147.37,147.35,3.53869368]
[1728307720194,6.7857,147.37,147.31,3.53869368]
[1728307720572,6.7865,147.36,147.31,3.53869368]
[1728307720773,6.1537,147.34,147.31,10.32689368]
[1728307721390,16.3481,147.33,147.31,3.53869368]
[1728307721591,16.3481,147.33,147.3,10.32749368]
[1728307721773,16.3481,147.33,147.3,3.53869368]
[1728307722062,23.1356,147.33,147.31,3.53869368]
[1728307722697,6.7879,147.32,147.31,3.53869368]
[1728307723295,6.7879,147.32,147.29,7.07738736]
[1728307723793,23.1357,147.33,147.3,9.3573583]
[1728307723991,23.1357,147.33,147.31,3.53288103]
[1728307725293,23.1357,147.33,147.3,3.53288103]
[1728307727183,23.1357,147.33,147.31,3.53288103]
[1728307728286,23.1357,147.33,147.3,3.53288103]
[1728307733403,6.788,147.32,147.3,3.53288103]
[1728307734804,16.3481,147.33,147.31,10.32088103]
[1728307734984,6.1537,147.34,147.32,6.7875]
[1728307735703,6.1537,147.34,147.31,15.92036864]
[1728307735704,6.1537,147.34,147.31,10.32118103]
[1728307735909,6.7879,147.32,147.31,3.53288103]
[1728307736276,6.7876,147.33,147.31,3.53288103]
[1728307737209,12.9408,147.34,147.31,3.53288103]
[1728307740417,6.1537,147.34,147.32,6.7878]
[1728307740597,6.1537,147.34,147.31,3.53288103]
[1728307741302,15.6781,147.37,147.31,3.53288103]
[1728307741513,22.4641,147.37,147.33,6.7874]
[1728307742088,15.6781,147.37,147.31,3.53288103]
[1728307742299,6.787,147.34,147.31,3.53288103]
[1728307743399,6.787,147.34,147.32,3.53288103]
[1728307744207,6.787,147.34,147.31,3.53288103]
[1728307744531,6.7875,147.33,147.31,3.53288103]
[1728307744776,6.7879,147.32,147.31,3.53288103]
[1728307744918,6.7875,147.33,147.31,3.53288103]
[1728307745429,23.902374,147.34,147.31,3.53288103]
[1728307745628,6.3079,147.33,147.31,3.53288103]
[1728307745929,13.0957,147.33,147.31,3.53288103]
[1728307746399,6.7879,147.32,147.31,3.53288103]
[1728307748210,6.7866,147.35,147.31,3.53288103]
[1728307748526,28.5622,147.37,147.33,6.787]
[1728307750017,6.7852,147.38,147.34,6.7865]
[1728307750533,6.5665,147.4,147.38,6.7851]
[1728307751002,6.7829,147.43,147.36,12.38748761]
[1728307751003,12.8648,147.44,147.39,6.7846]
[1728307752094,6.082,147.44,147.38,12.38748761]
[1728307752521,6.082,147.44,147.36,19.48004536]
[1728307752714,6.082,147.44,147.37,1.35695499]
[1728307752921,20.0,147.43,147.37,1.35695499]
[1728307757615,12.8646,147.44,147.37,1.35695499]
[1728307760624,6.7826,147.44,147.37,1.35695499]
[1728307761012,20.0,147.46,147.38,19.48004536]
[1728307761389,20.0,147.46,147.39,1.35667758]
[1728307761631,26.7818,147.46,147.38,0.12549]
[1728307762812,26.7816,147.46,147.38,0.12549]
[1728307763702,26.7816,147.46,147.38,1.48222771]
[1728307765003,6.782,147.45,147.38,0.12549]
[1728307767440,6.782,147.45,147.38,1.48222797]
[1728307768006,6.7811,147.47,147.38,1.48222797]
[1728307768214,6.7811,147.47,147.39,16.5137]
[1728307768415,6.7811,147.47,147.4,1.35661367]
[1728307769122,0.8279988,147.5,147.41,0.12549]
[1728307769327,6.7804,147.49,147.42,1.35644442]
[1728307770217,6.7804,147.49,147.41,1.35644343]
[1728307770923,27.6077988,147.5,147.42,0.12549]
[1728307771112,27.6077988,147.5,147.43,1.35633093]
[1728307771510,20.8279988,147.5,147.43,1.35633093]
[1728307771719,0.8279988,147.5,147.44,0.12549]
[1728307772130,7.6075988,147.5,147.44,0.12549]
[1728307772304,7.6075988,147.5,147.42,23.902374]
[1728307772509,7.6075988,147.5,147.43,0.12549]
[1728307774055,0.8279988,147.5,147.43,0.12549]
[1728307774438,0.8279988,147.5,147.43,12.50480788]
[1728307774628,0.8279988,147.5,147.44,13.73562487]
[1728307775428,0.8279988,147.5,147.44,12.37931788]
[1728307775828,7.6076988,147.5,147.44,12.37931788]
[1728307776446,7.6080988,147.5,147.43,12.37931788]
[1728307776631,6.7801,147.49,147.42,12.37931788]
[1728307777567,6.7801,147.49,147.43,1.3563776]
[1728307777738,6.7801,147.49,147.42,12.37931788]
[1728307778248,6.7801,147.49,147.43,1.35637626]
[1728307779333,0.8279988,147.5,147.44,13.73568579]
[1728307779532,7.6076988,147.5,147.45,12.37931788]
[1728307779740,7.6076988,147.5,147.44,28.42521788]
[1728307780250,0.8279988,147.5,147.45,1.35622273]
[1728307781325,0.8279988,147.5,147.44,28.42521788]
[1728307782147,7.6078988,147.5,147.44,16.0459]
[1728307782824,6.7801,147.49,147.44,16.0459]
[1728307783024,6.7805,147.48,147.44,16.0459]
[1728307784952,0.8279988,147.5,147.44,16.0459]
[1728307785136,6.7802,147.49,147.44,16.0459]
[1728307793067,6.0523,147.49,147.4,12.37931788]
[1728307793245,26.7807,147.48,147.41,1.3565391]
[1728307793450,26.7807,147.48,147.4,12.37931788]
[1728307793451,6.781,147.47,147.4,12.37931788]
[1728307793969,6.7807,147.48,147.4,12.37931788]
[1728307794561,6.7807,147.48,147.41,12.37931788]
[1728307795381,6.7804,147.49,147.43,27.56391788]
[1728307800276,7.6077988,147.5,147.44,1.35638976]
[1728307800457,0.8279988,147.5,147.45,12.37931788]
[1728307800657,7.6076988,147.5,147.45,12.37931788]
[1728307801161,7.6076988,147.5,147.43,27.56391788]
[1728307801367,0.8279988,147.5,147.43,15.1846]
[1728307801575,6.7806,147.48,147.43,15.1846]
[1728307801889,6.7813,147.47,147.43,15.1846]
[1728307802173,6.7813,147.47,147.41,6.523]
[1728307803068,6.7815,147.46,147.41,6.523]
[1728307803270,44.027864,147.49,147.39,16.3569]
[1728307803581,6.7816,147.46,147.4,13.73603652]
[1728307803772,44.027864,147.49,147.4,13.73603652]
[1728307803773,6.7804,147.49,147.42,12.37931788]
[1728307803952,23.776884,147.49,147.4,12.37931788]
[1728307804368,26.7809,147.48,147.4,12.37931788]
[1728307804374,6.7807,147.48,147.41,13.73588052]
[1728307805263,6.7802,147.49,147.43,12.37931788]
[1728307806574,7.6076988,147.5,147.45,12.37931788]
[1728307806967,0.8279988,147.5,147.45,13.73562225]
[1728307807277,0.8279988,147.5,147.46,12.37931788]
[1728307807741,0.8279988,147.5,147.47,13.73536556]
[1728307807887,0.8279988,147.5,147.47,12.37931788]
[1728307808185,0.8279988,147.5,147.46,12.37931788]
[1728307808396,0.8279988,147.5,147.47,1.35604212]
[1728307808571,0.8279988,147.5,147.46,13.7353556]
[1728307808762,0.8279988,147.5,147.46,12.37931788]
[1728307808963,0.8279988,147.5,147.45,12.37931788]
[1728307809270,0.8279988,147.5,147.44,15.0196]
[1728307809271,7.6076988,147.5,147.44,15.0196]
[1728307809478,0.8279988,147.5,147.46,12.37931788]
[1728307809780,0.8279988,147.5,147.45,13.7356196]
[1728307810291,0.8279988,147.5,147.47,12.37931788]
[1728307812373,0.8279988,147.5,147.48,1.35598224]
[1728307812572,0.8279988,147.5,147.48,1.35597899]
[1728307812992,0.8279988,147.5,147.49,13.73529685]
[1728307813182,0.8279988,147.5,147.49,12.37931788]
[1728307813694,0.8279988,147.5,147.49,29.15750788]
[1728307813885,0.8279988,147.5,147.49,30.5131699]
[1728307814484,0.8279988,147.5,147.49,54.4155439]
[1728307815407,0.1,147.59,147.51,24.027864]
[1728307815580,0.1,147.59,147.55,6.5015]
[1728307815796,0.1,147.59,147.57,12.37931788]
[1728307816210,0.1,147.59,147.55,6.5015]
[1728307816464,0.1,147.59,147.55,18.88081788]
[1728307816716,0.1,147.59,147.53,29.03201788]
[1728307816911,0.1,147.59,147.53,16.6527]
[1728307817225,6.7765,147.57,147.5,12.37931788]
[1728307817458,0.1,147.59,147.51,12.37931788]
[1728307817709,0.1,147.59,147.52,12.37931788]
[1728307818007,6.8756,147.59,147.52,12.37931788]
[1728307818192,6.8756,147.59,147.51,12.37931788]
[1728307818609,6.776,147.58,147.51,12.37931788]
[1728307818825,6.7772,147.56,147.49,29.03201788]
[1728307819114,23.776884,147.58,147.46,12.37931788]
[1728307819115,6.7778,147.54,147.46,12.37931788]
[1728307819313,6.7777,147.55,147.47,12.37931788]
[1728307819493,20.12549,147.57,147.47,12.37931788]
[1728307819494,6.7778,147.54,147.47,12.37931788]
[1728307819689,20.12549,147.57,147.47,12.37931788]
[1728307819891,23.776884,147.56,147.47,12.37931788]
[1728307820097,6.7778,147.54,147.47,12.37931788]
[1728307820902,39.110084,147.56,147.46,12.37931788]
[1728307821114,0.12549,147.55,147.45,28.37061788]
[1728307821311,6.7784,147.53,147.46,13.73536331]
[1728307821528,6.7784,147.53,147.46,12.37931788]
[1728307821805,6.779,147.52,147.45,15.9913]
[1728307822032,6.779,147.52,147.45,28.37061788]
[1728307822327,6.7782,147.53,147.46,13.73536097]
[1728307822799,20.0,147.55,147.48,12.37931788]
[1728307823309,6.7779,147.54,147.47,12.37931788]
[1728307823615,6.7779,147.54,147.45,15.9913]
[1728307823616,26.7774,147.55,147.48,13.73527605]
[1728307823812,26.7774,147.55,147.48,12.37931788]
[1728307824000,6.7774,147.55,147.48,12.37931788]
[1728307824203,22.1102,147.56,147.49,1.35584434]
[1728307824597,22.1102,147.56,147.49,13.73516222]
[1728307824803,22.1102,147.56,147.49,12.37931788]
[1728307825109,15.3332,147.56,147.49,12.37931788]
[1728307825415,15.3332,147.56,147.47,1.3558482]
[1728307825416,6.7779,147.54,147.48,12.37931788]
[1728307825705,6.7786,147.53,147.47,12.37931788]
[1728307825921,6.7779,147.54,147.48,1.35596861]
[1728307826696,6.7779,147.54,147.48,13.73528649]
[1728307827024,6.7779,147.54,147.48,12.37931788]
[1728307827271,6.7779,147.54,147.47,12.37931788]
[1728307827530,6.7774,147.55,147.48,13.73528416]
[1728307827818,15.3332,147.56,147.5,12.37931788]
[1728307828118,22.1101,147.56,147.49,12.37931788]
[1728307828407,22.1101,147.56,147.5,1.35573698]
[1728307828612,22.1101,147.56,147.49,12.37931788]
[1728307829601,22.1101,147.56,147.5,1.35573783]
[1728307829805,22.1101,147.56,147.49,12.37931788]
[1728307830003,6.7774,147.55,147.48,0.12549]
[1728307830204,6.7774,147.55,147.49,12.37931788]
[1728307830573,15.3332,147.56,147.51,12.37931788]
[1728307830744,15.3332,147.56,147.5,12.37931788]
[1728307831023,15.3332,147.56,147.49,12.37931788]
[1728307831418,6.7776,147.55,147.47,20.25098]
[1728307831618,6.7776,147.55,147.48,12.37931788]
[1728307832351,15.3332,147.56,147.49,13.73508414]
[1728307832633,15.3332,147.56,147.49,12.37931788]
[1728307832931,22.1102,147.56,147.49,12.37931788]
[1728307833143,15.3332,147.56,147.48,12.37931788]
[1728307833334,6.7784,147.53,147.47,12.50480788]
[1728307833512,6.7779,147.54,147.47,12.50480788]
[1728307833731,6.7782,147.53,147.45,15.9913]
[1728307833956,6.7782,147.53,147.46,32.37931788]
[1728307834311,6.7797,147.5,147.41,15.0008]
[1728307834510,6.7797,147.5,147.43,12.37931788]
[1728307834741,6.7797,147.5,147.42,12.37931788]
[1728307834914,23.2447,147.51,147.44,12.37931788]
[1728307835539,23.2447,147.51,147.45,12.37931788]
[1728307836131,23.2447,147.51,147.44,12.37931788]
[1728307837337,16.4654,147.51,147.46,12.37931788]
[1728307837843,16.4654,147.51,147.45,12.37931788]
[1728307838444,6.7801,147.49,147.42,12.37931788]
[1728307838841,6.7801,147.49,147.37,3.36588246]
[1728307838842,6.781,147.48,147.38,15.5493]
[1728307839146,6.7811,147.47,147.4,12.37931788]
[1728307839443,13.2167,147.48,147.4,12.37931788]
[1728307839627,13.2167,147.48,147.41,12.37931788]
[1728307840569,13.2167,147.48,147.39,43.37431424]
[1728307841023,6.436,147.48,147.39,43.37431424]
[1728307841425,13.2166,147.48,147.39,43.37431424]
[1728307841842,6.781,147.47,147.39,43.37431424]
[1728307842142,13.2166,147.48,147.39,43.37431424]
[1728307842849,13.2166,147.48,147.4,1.35650833]
[1728307843443,13.2166,147.48,147.39,43.37431424]
[1728307844043,6.436,147.48,147.39,19.47194024]
[1728307844386,15.211,147.47,147.36,20.0]
[1728307844514,6.7818,147.46,147.36,20.0]
[1728307844722,15.211,147.47,147.37,20.70315185]
[1728307845134,15.211,147.47,147.39,19.34645024]
[1728307845344,15.211,147.47,147.4,1.35653053]
[1728307846043,15.211,147.47,147.4,0.12549]
[1728307846453,15.211,147.47,147.4,1.48199569]
[1728307846659,15.211,147.47,147.41,19.34645024]
[1728307847004,15.211,147.47,147.42,1.35643561]
[1728307847638,15.211,147.47,147.41,19.34645024]
[1728307847830,15.211,147.47,147.42,1.35643447]
[1728307848044,15.211,147.47,147.41,19.34645024]
[1728307848451,15.211,147.47,147.39,19.47194024]
[1728307848760,21.9921,147.47,147.39,19.47194024]
[1728307848959,15.211,147.47,147.39,19.47194024]
[1728307849140,15.211,147.47,147.38,43.776884]
[1728307849338,6.7816,147.46,147.38,20.0]
[1728307849661,6.7816,147.46,147.37,19.34645024]
[1728307850337,15.211,147.47,147.37,19.34645024]
[1728307850537,15.211,147.47,147.35,25.14803911]
[1728307850538,6.7825,147.44,147.35,28.03792538]
[1728307850743,6.7825,147.44,147.35,19.34645024]
[1728307850946,16.2341,147.43,147.35,19.34645024]
[1728307851735,23.017,147.43,147.35,19.34645024]
[1728307852135,16.2341,147.43,147.35,19.34645024]
[1728307852561,16.2341,147.43,147.36,0.12549]
[1728307852745,23.017,147.43,147.39,6.7844]
[1728307854766,6.7836,147.42,147.38,6.7847]
[1728307855354,16.2341,147.43,147.36,1.35695604]
[1728307855667,23.0171,147.43,147.39,6.7846]
[1728307856458,6.7833,147.42,147.38,6.7849]
[1728307856849,6.7841,147.41,147.37,6.7854]
[1728307857249,12.8726,147.42,147.38,6.7851]
[1728307857470,6.0892,147.42,147.39,6.7843]
[1728307858750,12.8725,147.42,147.38,6.785]
[1728307858950,6.7838,147.41,147.37,6.7854]
[1728307859265,6.7843,147.4,147.36,6.7858]
[1728307860253,12.8727,147.42,147.38,6.7851]
[1728307860568,12.8727,147.42,147.35,19.34645024]
[1728307860569,6.0892,147.42,147.35,19.34645024]
[1728307860753,12.8725,147.42,147.38,6.785]
[1728307861462,12.8725,147.42,147.36,12.39060185]
[1728307861463,6.7843,147.4,147.36,6.786]
[1728307861673,6.0892,147.42,147.33,12.39060185]
[1728307861856,6.7848,147.39,147.35,6.7864]
[1728307862172,6.7843,147.4,147.36,6.786]
[1728307862389,43.902374,147.41,147.35,6.7865]
[1728307862554,6.7848,147.39,147.35,6.7865]
[1728307863073,43.902374,147.41,147.27,16.87896758]
[1728307863074,15.5779,147.4,147.27,16.87896758]
[1728307863388,15.5779,147.4,147.32,6.7875]
[1728307863389,6.7861,147.36,147.32,6.7875]
[1728307863868,6.1963,147.39,147.35,12.39060185]
[1728307864056,6.7853,147.38,147.34,6.7867]
[1728307864374,6.1963,147.39,147.35,6.7865]
[1728307864375,12.9811,147.39,147.35,6.7865]
[1728307865091,6.7855,147.38,147.34,6.7869]
[1728307865285,6.1963,147.39,147.36,6.786]
[1728307865286,12.9812,147.39,147.36,6.786]
[1728307865448,12.9812,147.39,147.35,6.7864]
[1728307865774,6.1963,147.39,147.33,6.7871]
[1728307865982,6.7856,147.37,147.33,6.7871]
[1728307866149,6.7864,147.36,147.32,6.7878]
[1728307866347,23.902374,147.38,147.32,6.7878]
[1728307866567,6.7853,147.38,147.32,12.39060185]
[1728307866852,6.1963,147.39,147.32,12.39060185]
[1728307867053,12.9811,147.39,147.35,6.7862]
[1728307867970,6.7852,147.38,147.34,6.7868]
[1728307868176,12.9811,147.39,147.35,6.7862]
[1728307869176,12.981,147.39,147.35,6.7864]
[1728307869491,12.981,147.39,147.34,6.7868]
[1728307870383,12.981,147.39,147.35,6.7864]
[1728307871279,6.1963,147.39,147.34,12.39060185]
[1728307871751,6.1963,147.39,147.38,6.7851]
[1728307871803,15.5779,147.4,147.38,6.7851]
[1728307872278,15.5779,147.4,147.38,6.7848]
[1728307872468,15.5779,147.4,147.39,6.7847]
[1728307872666,15.5779,147.4,147.36,12.39060185]
[1728307872850,15.5779,147.4,147.38,6.785]
[1728307873256,15.5779,147.4,147.39,6.7847]
[1728307873969,15.5779,147.4,147.38,6.785]
[1728307874481,15.5779,147.4,147.34,6.7867]
[1728307874482,6.7854,147.38,147.34,6.7867]
[1728307874658,6.7848,147.39,147.35,6.7865]
[1728307876878,6.7852,147.38,147.34,6.7867]
[1728307877073,6.5723,147.37,147.34,6.7867]
[1728307877281,13.3582,147.37,147.33,6.7873]
[1728307877515,6.7868,147.35,147.31,6.7883]
[1728307877711,6.787,147.34,147.26,12.39060185]
[1728307877975,15.9225,147.36,147.25,79.11817722]
[1728307878179,6.7867,147.35,147.31,6.7883]
[1728307880508,6.7867,147.35,147.28,12.39060185]
[1728307880509,23.902374,147.35,147.24,20.0]
[1728307880677,23.902374,147.35,147.25,20.0]
[1728307880997,23.902374,147.35,147.23,15.9381]
[1728307880998,6.7884,147.31,147.23,15.9381]
[1728307881193,22.8796,147.31,147.27,6.7901]
[1728307881703,22.8796,147.31,147.22,19.38576465]
[1728307881704,16.0912,147.31,147.22,19.38576465]
[1728307881904,16.0912,147.31,147.28,6.7897]
[1728307882787,16.0912,147.31,147.25,0.12549]
[1728307883002,16.0912,147.31,147.29,6.7889]
[1728307883501,16.0912,147.31,147.3,6.7888]
[1728307884187,6.5979,147.32,147.26,19.38576465]
[1728307884418,15.0766,147.35,147.28,19.51125465]
[1728307884705,15.0766,147.35,147.28,19.38576465]
[1728307884999,15.0766,147.35,147.31,6.7882]
[1728307885187,21.8632,147.35,147.31,6.7882]
[1728307886073,21.8632,147.35,147.26,19.38576465]
[1728307886074,15.0766,147.35,147.28,0.12549]
[1728307886273,15.0766,147.35,147.32,6.7878]
[1728307886503,15.0766,147.35,147.34,6.787]
[1728307886706,6.0905,147.36,147.34,6.787]
[1728307888121,6.0905,147.36,147.35,6.7865]
[1728307888580,15.4746,147.38,147.35,6.7865]
[1728307888779,15.4746,147.38,147.3,19.38576465]
[1728307889111,6.7866,147.35,147.26,19.38576465]
[1728307889396,12.8616,147.35,147.26,19.38576465]
[1728307889709,12.8616,147.35,147.3,6.7887]
[1728307889710,6.075,147.35,147.3,6.7887]
[1728307889903,6.7871,147.34,147.3,6.7887]
[1728307890081,6.7875,147.33,147.24,19.38576465]
[1728307890279,23.3861,147.33,147.29,6.789]
[1728307890482,16.5986,147.33,147.31,6.7883]
[1728307890786,16.5986,147.33,147.3,6.7887]
[1728307891196,23.3861,147.33,147.29,6.7892]
[1728307891635,16.5986,147.33,147.3,6.7888]
[1728307892813,6.7882,147.32,147.28,6.7896]
[1728307893108,16.5986,147.33,147.26,6.7903]
[1728307893307,6.7886,147.31,147.27,6.7901]
[1728307894402,23.902374,147.32,147.26,6.7903]
[1728307894605,6.4391,147.29,147.26,6.7903]
[1728307895307,13.2284,147.29,147.2,19.38576465]
[1728307895701,13.2284,147.29,147.25,6.791]
[1728307895889,13.2284,147.29,147.19,79.11817722]
[1728307896207,6.7897,147.28,147.24,6.7914]
[1728307896393,16.3123,147.28,147.19,79.11817722]
[1728307896607,23.776884,147.27,147.21,6.7928]
[1728307897190,23.776884,147.27,147.16,19.38576465]
[1728307897191,6.7919,147.24,147.16,19.38576465]
[1728307897386,6.7919,147.24,147.14,19.38576465]
[1728307897706,6.7917,147.24,147.2,6.7934]
[1728307898086,6.4391,147.25,147.22,6.7922]
[1728307898288,13.2303,147.25,147.21,6.7928]
[1728307899824,6.4391,147.25,147.16,19.38576465]
[1728307900023,13.2304,147.25,147.2,6.7934]
[1728307900220,22.3498,147.24,147.13,95.97347602]
[1728307900424,22.3498,147.24,147.19,6.7936]
[1728307900425,15.5579,147.24,147.19,6.7936]
[1728307900721,30.569384,147.23,147.18,6.794]
[1728307901109,30.569384,147.23,147.14,1.35892984]
[1728307901311,30.569384,147.23,147.19,6.7938]
[1728307902007,30.569384,147.23,147.18,6.7942]
[1728307902306,30.569284,147.23,147.18,6.794]
[1728307902500,30.569284,147.23,147.19,6.7938]
[1728307903004,15.5579,147.24,147.15,19.38576465]
[1728307903202,15.5579,147.24,147.22,6.7925]
[1728307903414,15.5579,147.24,147.23,6.792]
[1728307903620,6.4391,147.25,147.19,19.38576465]
[1728307904006,6.4391,147.25,147.24,6.7916]
[1728307905328,15.2433,147.28,147.25,6.791]
[1728307907020,15.2433,147.28,147.26,6.7905]
[1728307907203,15.2433,147.28,147.27,6.7902]
[1728307907515,15.2433,147.28,147.26,6.7904]
[1728307908515,15.2433,147.28,147.22,1.35820275]
[1728307908848,21.8266,147.32,147.25,19.38576465]
[1728307909136,21.8266,147.32,147.29,6.7892]
[1728307909632,21.8266,147.32,147.29,6.7891]
[1728307910333,21.8266,147.32,147.3,6.7887]
[1728307910705,16.9613,147.4,147.27,43.28813865]
[1728307910910,6.7863,147.36,147.32,6.7878]
[1728307911203,29.6638,147.35,147.25,35.02416465]
[1728307911404,6.7871,147.34,147.3,6.7887]
[1728307911610,29.6638,147.35,147.31,6.788]